fUSD/lending_fUSD_20240409
["ID","MTS","AMOUNT","RATE_DAILY","PERIOD"]
[321972143,1712662248226,-500.0,0.00020821,2]
[321972144,1712662248235,-500.0,0.00020821,2]
[321972145,1712662248244,-1283.13,0.00020821,2]
[321972146,1712662248253,-500.0,0.00020821,2]
[321972147,1712662248264,-336.81260568,0.00020821,2]
[321972148,1712662248290,-670.55739432,0.00020821,2]
[321972149,1712662248299,-1308.83,0.00020821,2]
[321972150,1712662248308,-874.3,0.00020821,2]
[321972151,1712662248318,-500.0,0.00020821,2]
[321972152,1712662248327,-500.0,0.00020821,2]
[321972153,1712662248336,-358.35908832,0.00020821,2]
[321972154,1712662248346,-1189.26,0.00020821,2]
[321972155,1712662248358,-1136.66,0.00020821,2]
[321972156,1712662248368,-500.0,0.00020821,2]
[321972157,1712662248377,-500.0,0.00020821,2]
[321972158,1712662248386,-500.0,0.00020821,2]
[321972159,1712662248396,-500.0,0.00020821,2]
[321972160,1712662248404,-500.0,0.00020821,2]
[321972161,1712662248413,-554.07073961,0.00020821,2]
[321972162,1712662248423,-500.0,0.00020821,2]
[321972163,1712662248432,-1138.93,0.00020821,2]
[321972164,1712662248441,-500.0,0.00020821,2]
[321972165,1712662248450,-510.46948471,0.00020821,2]
[321972166,1712662248459,-598.4,0.00020821,2]
[321972167,1712662248469,-500.0,0.00020821,2]
[321972168,1712662248478,-500.0,0.00020821,2]
[321972169,1712662248488,-434.31137274,0.00020821,2]
[321972170,1712662248498,-500.0,0.00020821,2]
[321972171,1712662248507,-1093.66,0.00020821,2]
[321972172,1712662248518,-500.0,0.00020821,2]
[321972173,1712662248527,-670.79,0.00020821,2]
[321972174,1712662248536,-500.0,0.00020821,2]
[321972175,1712662248545,-656.40192031,0.00020821,2]
[321972176,1712662248896,-69.68807969,0.00020821,2]
[321972177,1712662248905,-1829.60423026,0.00020821,2]
[321972178,1712662248922,-42.24576974,0.00020821,2]
[321972179,1712662248931,-500.0,0.00020821,2]
[321972180,1712662248941,-500.0,0.00020821,2]
[321972181,1712662248950,-945.93,0.00020821,2]
[321972182,1712662248960,-1040.81915452,0.00020821,2]
[321972183,1712662248997,-146.88084548,0.00020821,2]
[321972184,1712662249008,-1156.26753971,0.00020821,2]
[321972185,1712662249039,-294.14994472,0.00020821,2]
[321972186,1712662249051,-107.91251557,0.00020821,2]
[321972187,1712662249062,-500.0,0.00020821,2]
[321972188,1712662249072,-1516.99569321,0.00020821,2]
[321972189,1712662249191,-508.05430679,0.00020821,2]
[321972190,1712662249201,-177.94569521,0.00020821,2]
[321972191,1712662249245,-260.70469595,0.00020821,2]
[321972192,1712662249755,2535.18964708,0.00013274,2]
[321972193,1712662250311,-354.21,0.00020821,2]
[321972194,1712662250347,-378.79104645,0.00020821,2]
[321972195,1712662250360,-57.03856239,0.00020821,2]
[321972196,1712662250369,-500.0,0.00020821,2]
[321972197,1712662250380,-114.29743761,0.00020821,2]
[321972199,1712662265180,2354.1601947,0.00013274,2]
[321972202,1712662278145,151.0,0.00026981,120]
[321972205,1712662405715,313.79,0.000181,2]
[321972206,1712662407933,25000.0,0.00032787,30]
[321972207,1712662413447,152.92,0.00024329,15]
[321972208,1712662745446,151.0,0.00026829,120]
[321972209,1712662875556,3700.0,0.00032788,120]
[321972211,1712662973518,332.05,0.00018043,2]
[321972213,1712663139578,151.0,0.00026656,120]
[321972259,1712663432657,-7485.32692737,0.00018997,2]
[321972260,1712663432666,-3246.03582993,0.00018998,2]
[321972261,1712663432675,-1250.0,0.00019,3]
[321972262,1712663432685,-800.0,0.0001975,2]
[321972263,1712663432694,-157.44,0.0001986,2]
[321972264,1712663432705,-150.0,0.00019903,2]
[321972265,1712663432714,-4708.66,0.00019904,2]
[321972266,1712663432723,-200.0,0.00019939,2]
[321972267,1712663432732,-680.08,0.0001996,2]
[321972268,1712663432741,-15889.31,0.00019965,2]
[321972270,1712663432751,-1000.0,0.00019999,2]
[321972272,1712663432760,-761.53997016,0.0002,2]
[321972274,1712663432770,-56624.42185349,0.0002,2]
[321972276,1712663432781,-1000.0,0.00020066,2]
[321972278,1712663432791,-2703.2934065,0.00020125,2]
[321972280,1712663432800,-259.9612311,0.00020236,2]
[321972282,1712663432809,-12155.21,0.00020236,2]
[321972284,1712663432818,-332.05,0.00020307,2]
[321972286,1712663432828,-526.0,0.0002052,2]
[321972288,1712663432838,-529.0,0.0002052,2]
[321972290,1712663432847,-152.14607274,0.00020721,2]
[321972292,1712663432856,-156.9842685,0.00020721,2]
[321972294,1712663432865,-1515.13984962,0.00020721,2]
[321972296,1712663432875,-322.06522953,0.00020721,2]
[321972298,1712663432885,-1088.0,0.000208,5]
[321972300,1712663432894,-365.36033927,0.0002082,2]
[321972302,1712663432903,-537.0,0.00020821,2]
[321972304,1712663432913,-347.04280303,0.00020821,2]
[321972306,1712663432921,-980.76,0.00020821,2]
[321972308,1712663432931,-521.83159561,0.00020821,2]
[321972310,1712663432940,-535.7,0.00020821,2]
[321972312,1712663432949,-516.78574096,0.00020821,2]
[321972315,1712663432959,-500.0,0.00020821,2]
[321972317,1712663432968,-500.0,0.00020821,2]
[321972318,1712663432977,-500.0,0.00020821,2]
[321972320,1712663432987,-500.0,0.00020821,2]
[321972323,1712663432997,-507.39339006,0.00020821,2]
[321972324,1712663433006,-500.0,0.00020821,2]
[321972326,1712663433016,-500.0,0.00020821,2]
[321972327,1712663433025,-552.68872028,0.00020821,2]
[321972328,1712663433034,-533.75089982,0.00020821,2]
[321972329,1712663433043,-380.4736149,0.00020821,2]
[321972330,1712663433052,-625.53862055,0.00020821,2]
[321972331,1712663433062,-500.0,0.00020821,2]
[321972332,1712663433071,-500.0,0.00020821,2]
[321972333,1712663433081,-516.1260088,0.00020821,2]
[321972334,1712663433090,-500.0,0.00020821,2]
[321972335,1712663433100,-514.00523527,0.00020821,2]
[321972336,1712663433110,-325.68803425,0.00020821,2]
[321972337,1712663433120,-228.92790874,0.00020821,2]
[321972338,1712663433129,-500.0,0.00020821,2]
[321972339,1712663433138,-745.52,0.00020821,2]
[321972340,1712663433148,-500.0,0.00020821,2]
[321972341,1712663433157,-514.50601941,0.00020821,2]
[321972342,1712663433167,-500.0,0.00020821,2]
[321972343,1712663433176,-500.0,0.00020821,2]
[321972344,1712663433185,-1079.76,0.00020821,2]
[321972345,1712663433195,-519.06,0.00020821,2]
[321972346,1712663433205,-500.0,0.00020821,2]
[321972347,1712663433214,-500.0,0.00020821,2]
[321972348,1712663433223,-500.0,0.00020821,2]
[321972349,1712663433232,-984.59,0.00020821,2]
[321972350,1712663433241,-500.0,0.00020821,2]
[321972351,1712663433250,-500.0,0.00020821,2]
[321972352,1712663433260,-500.0,0.00020821,2]
[321972353,1712663433269,-500.0,0.00020821,2]
[321972354,1712663433279,-596.2949508,0.00020821,2]
[321972355,1712663433288,-500.0,0.00020821,2]
[321972356,1712663433297,-500.0,0.00020821,2]
[321972357,1712663433307,-645.43024219,0.00020821,2]
[321972358,1712663433316,-563.87,0.00020821,2]
[321972359,1712663433325,-500.0,0.00020821,2]
[321972360,1712663433335,-567.97276052,0.00020821,2]
[321972361,1712663433344,-500.0,0.00020821,2]
[321972362,1712663433353,-500.0,0.00020821,2]
[321972363,1712663433363,-500.0,0.00020821,2]
[321972364,1712663433372,-639.02,0.00020821,2]
[321972365,1712663433382,-500.0,0.00020821,2]
[321972366,1712663433391,-500.0,0.00020821,2]
[321972367,1712663433401,-500.0,0.00020821,2]
[321972368,1712663433410,-500.0,0.00020821,2]
[321972369,1712663433420,-500.0,0.00020821,2]
[321972370,1712663433429,-500.0,0.00020821,2]
[321972371,1712663433439,-500.0,0.00020821,2]
[321972372,1712663433448,-680.81,0.00020821,2]
[321972373,1712663433458,-500.0,0.00020821,2]
[321972374,1712663433467,-508.1,0.00020821,2]
[321972375,1712663433477,-500.0,0.00020821,2]
[321972376,1712663433487,-500.0,0.00020821,2]
[321972377,1712663433497,-320.52,0.00020821,2]
[321972378,1712663433506,-609.09540983,0.00020821,2]
[321972379,1712663433517,-500.0,0.00020821,2]
[321972380,1712663433527,-500.0,0.00020821,2]
[321972381,1712663433536,-837.98,0.00020821,2]
[321972382,1712663433546,-533.46,0.00020821,2]
[321972383,1712663433555,-665.56,0.00020821,2]
[321972384,1712663433565,-500.0,0.00020821,2]
[321972385,1712663433574,-500.0,0.00020821,2]
[321972386,1712663433584,-500.0,0.00020821,2]
[321972387,1712663433595,-164.49666757,0.00020821,2]
[321972388,1712663433607,-884.93,0.00020821,2]
[321972389,1712663433618,-555.45,0.00020821,2]
[321972390,1712663433628,-906.23,0.00020821,2]
[321972391,1712663433639,-500.0,0.00020821,2]
[321972392,1712663433650,-1147.53,0.00020821,2]
[321972393,1712663433660,-500.0,0.00020821,2]
[321972394,1712663433670,-500.0,0.00020821,2]
[321972395,1712663433679,-500.0,0.00020821,2]
[321972396,1712663433689,-500.0,0.00020821,2]
[321972397,1712663433700,-500.0,0.00020821,2]
[321972398,1712663433710,-500.0,0.00020821,2]
[321972399,1712663433720,-500.0,0.00020821,2]
[321972400,1712663433729,-500.0,0.00020821,2]
[321972401,1712663433738,-500.0,0.00020821,2]
[321972402,1712663433748,-500.0,0.00020821,2]
[321972403,1712663433758,-500.0,0.00020821,2]
[321972404,1712663433767,-500.0,0.00020821,2]
[321972405,1712663433778,-500.0,0.00020821,2]
[321972406,1712663433787,-500.0,0.00020821,2]
[321972407,1712663433797,-500.0,0.00020821,2]
[321972408,1712663433807,-500.0,0.00020821,2]
[321972409,1712663433816,-500.0,0.00020821,2]
[321972410,1712663433826,-500.0,0.00020821,2]
[321972411,1712663433835,-500.0,0.00020821,2]
[321972412,1712663433844,-540.25,0.00020821,2]
[321972413,1712663433853,-500.0,0.00020821,2]
[321972414,1712663433862,-712.14,0.00020821,2]
[321972415,1712663433872,-500.0,0.00020821,2]
[321972416,1712663433881,-500.0,0.00020821,2]
[321972417,1712663433890,-500.0,0.00020821,2]
[321972418,1712663433900,-610.63,0.00020821,2]
[321972419,1712663433909,-500.0,0.00020821,2]
[321972420,1712663433918,-500.0,0.00020821,2]
[321972421,1712663433928,-500.0,0.00020821,2]
[321972422,1712663433938,-500.0,0.00020821,2]
[321972423,1712663433947,-500.0,0.00020821,2]
[321972424,1712663433957,-500.0,0.00020821,2]
[321972425,1712663433967,-500.0,0.00020821,2]
[321972426,1712663433976,-500.0,0.00020821,2]
[321972427,1712663433986,-500.0,0.00020821,2]
[321972428,1712663433996,-500.0,0.00020821,2]
[321972429,1712663434005,-500.0,0.00020821,2]
[321972430,1712663434015,-500.0,0.00020821,2]
[321972431,1712663434024,-500.0,0.00020821,2]
[321972432,1712663434035,-500.0,0.00020821,2]
[321972433,1712663434044,-500.0,0.00020821,2]
[321972434,1712663434053,-500.0,0.00020821,2]
[321972435,1712663434063,-199.56493157,0.00020821,2]
[321972436,1712663434072,-500.0,0.00020821,2]
[321972437,1712663434082,-500.0,0.00020821,2]
[321972438,1712663434091,-965.4,0.00020821,2]
[321972439,1712663434100,-500.0,0.00020821,2]
[321972440,1712663434109,-500.0,0.00020821,2]
[321972441,1712663434119,-500.0,0.00020821,2]
[321972442,1712663434128,-500.0,0.00020821,2]
[321972443,1712663434137,-502.41,0.00020821,2]
[321972444,1712663434147,-1589.38,0.00020821,2]
[321972445,1712663434156,-517.52,0.00020821,2]
[321972446,1712663434166,-500.0,0.00020821,2]
[321972447,1712663434176,-500.0,0.00020821,2]
[321972448,1712663434185,-500.0,0.00020821,2]
[321972449,1712663434195,-500.0,0.00020821,2]
[321972450,1712663434204,-814.65,0.00020821,2]
[321972451,1712663434214,-385.70256239,0.00020821,2]
[321972452,1712663434223,-1146.36,0.00020821,2]
[321972453,1712663434233,-500.0,0.00020821,2]
[321972454,1712663434243,-500.0,0.00020821,2]
[321972455,1712663434252,-500.0,0.00020821,2]
[321972456,1712663434262,-509.49,0.00020821,2]
[321972457,1712663434270,-500.0,0.00020821,2]
[321972458,1712663434281,-500.0,0.00020821,2]
[321972459,1712663434290,-1393.39,0.00020821,2]
[321972460,1712663434299,-500.0,0.00020821,2]
[321972461,1712663434308,-324.38321919,0.00020821,2]
[321972462,1712663434317,-500.0,0.00020821,2]
[321972463,1712663434326,-500.0,0.00020821,2]
[321972464,1712663434335,-500.0,0.00020821,2]
[321972465,1712663434346,-532.11217747,0.00020821,2]
[321972466,1712663434355,-500.0,0.00020821,2]
[321972467,1712663434364,-500.0,0.00020821,2]
[321972468,1712663434374,-500.0,0.00020821,2]
[321972469,1712663434383,-500.0,0.00020821,2]
[321972470,1712663434392,-500.0,0.00020821,2]
[321972471,1712663434402,-500.0,0.00020821,2]
[321972472,1712663434412,-904.78,0.00020821,2]
[321972473,1712663434421,-500.0,0.00020821,2]
[321972474,1712663434430,-500.0,0.00020821,2]
[321972475,1712663434440,-1269.99,0.00020821,2]
[321972476,1712663434449,-1825.07,0.00020821,2]
[321972477,1712663434459,-789.22,0.00020821,2]
[321972478,1712663434468,-500.0,0.00020821,2]
[321972479,1712663434478,-759.64,0.00020821,2]
[321972480,1712663434487,-500.0,0.00020821,2]
[321972481,1712663434496,-500.0,0.00020821,2]
[321972482,1712663434505,-500.0,0.00020821,2]
[321972483,1712663434514,-1113.49,0.00020821,2]
[321972484,1712663434523,-500.0,0.00020821,2]
[321972485,1712663434535,-500.0,0.00020821,2]
[321972486,1712663434816,-500.0,0.00020821,2]
[321972487,1712663434828,-561.56,0.00020821,2]
[321972488,1712663434838,-500.0,0.00020821,2]
[321972489,1712663434847,-500.0,0.00020821,2]
[321972490,1712663434856,-798.18,0.00020821,2]
[321972491,1712663434866,-650.83,0.00020821,2]
[321972492,1712663434875,-500.0,0.00020821,2]
[321972493,1712663434884,-500.0,0.00020821,2]
[321972494,1712663434893,-538.87,0.00020821,2]
[321972495,1712663434902,-1561.37,0.00020821,2]
[321972496,1712663434911,-500.0,0.00020821,2]
[321972497,1712663434921,-500.0,0.00020821,2]
[321972498,1712663434930,-500.0,0.00020821,2]
[321972499,1712663434939,-500.0,0.00020821,2]
[321972500,1712663434948,-500.0,0.00020821,2]
[321972501,1712663434958,-500.0,0.00020821,2]
[321972502,1712663434967,-653.98,0.00020821,2]
[321972503,1712663434976,-500.0,0.00020821,2]
[321972504,1712663434986,-970.83,0.00020821,2]
[321972505,1712663434995,-500.0,0.00020821,2]
[321972506,1712663435005,-1103.67,0.00020821,2]
[321972507,1712663435014,-500.0,0.00020821,2]
[321972508,1712663435024,-500.0,0.00020821,2]
[321972509,1712663435035,-500.0,0.00020821,2]
[321972510,1712663435044,-500.0,0.00020821,2]
[321972511,1712663435054,-524.8,0.00020821,2]
[321972512,1712663435063,-1447.2,0.00020821,2]
[321972513,1712663435073,-897.38,0.00020821,2]
[321972514,1712663435083,-500.0,0.00020821,2]
[321972515,1712663435093,-663.82,0.00020821,2]
[321972516,1712663435105,-500.0,0.00020821,2]
[321972517,1712663435115,-500.0,0.00020821,2]
[321972518,1712663435125,-500.0,0.00020821,2]
[321972519,1712663435136,-951.6,0.00020821,2]
[321972520,1712663435146,-1250.8,0.00020821,2]
[321972521,1712663435157,-828.9,0.00020821,2]
[321972522,1712663435167,-1380.5,0.00020821,2]
[321972523,1712663435177,-500.0,0.00020821,2]
[321972524,1712663435188,-500.0,0.00020821,2]
[321972525,1712663435198,-1424.17,0.00020821,2]
[321972526,1712663435209,-544.03,0.00020821,2]
[321972527,1712663435219,-87.35062925,0.00020821,2]
[321972528,1712663435254,-913.00937075,0.00020821,2]
[321972529,1712663435265,-500.0,0.00020821,2]
[321972530,1712663435276,-500.0,0.00020821,2]
[321972531,1712663435291,-1159.65,0.00020821,2]
[321972532,1712663435302,-500.0,0.00020821,2]
[321972533,1712663435312,-500.0,0.00020821,2]
[321972534,1712663435323,-1430.55,0.00020821,2]
[321972535,1712663435334,-500.0,0.00020821,2]
[321972536,1712663435344,-435.95426083,0.00020821,2]
[321972537,1712663435357,-439.78573917,0.00020821,2]
[321972538,1712663435367,-500.0,0.00020821,2]
[321972539,1712663435377,-960.29,0.00020821,2]
[321972540,1712663435387,-500.0,0.00020821,2]
[321972541,1712663435396,-500.0,0.00020821,2]
[321972542,1712663435407,-1301.75,0.00020821,2]
[321972543,1712663435417,-500.0,0.00020821,2]
[321972544,1712663435427,-847.03,0.00020821,2]
[321972545,1712663435437,-500.0,0.00020821,2]
[321972546,1712663435448,-1054.8,0.00020821,2]
[321972547,1712663435458,-695.4,0.00020821,2]
[321972548,1712663435468,-1346.36,0.00020821,2]
[321972549,1712663435478,-500.0,0.00020821,2]
[321972550,1712663435488,-500.0,0.00020821,2]
[321972551,1712663435498,-428.06704752,0.00020821,2]
[321972552,1712663435539,-330.69382779,0.00020821,2]
[321972553,1712663435557,-952.70912469,0.00020821,2]
[321972554,1712663435567,-500.0,0.00020821,2]
[321972555,1712663435577,-1595.85,0.00020821,2]
[321972556,1712663435586,-500.0,0.00020821,2]
[321972557,1712663435598,-541.65,0.00020821,2]
[321972558,1712663435609,-1795.11,0.00020821,2]
[321972559,1712663435619,-798.34035131,0.00020821,2]
[321972560,1712663435669,-715.63964869,0.00020821,2]
[321972561,1712663435679,-766.18,0.00020821,2]
[321972562,1712663435690,-500.0,0.00020821,2]
[321972563,1712663435700,-482.94829908,0.00020821,2]
[321972564,1712663435713,-466.33962102,0.00020821,2]
[321972597,1712663438892,-1000.0,0.00020821,2]
[321972635,1712663440385,-526.0,0.00020547,2]
[321972636,1712663440394,-201.36499997,0.00020721,2]
[321972637,1712663440404,-881.19999969,0.00020721,2]
[321972638,1712663440440,-1324.34570034,0.00020721,2]
[321972639,1712663440449,-764.1938,0.00020721,2]
[321972640,1712663440458,-1414.96049966,0.00020821,2]
[321972641,1712663440499,-1914.828012,0.00020821,2]
[321972652,1712663443417,-10059.84954,0.00020821,2]
[321972653,1712663443444,-1618.04563825,0.00020821,2]
[321972654,1712663443590,-5111.35670102,0.00020821,2]
[321972668,1712663446335,-529.0,0.00020547,2]
[321972670,1712663446345,-221.0,0.00020821,2]
[321972671,1712663446553,-109815.98580741,0.00020821,2]
[321972672,1712663446565,-81801.35336838,0.00020821,2]
[321972673,1712663446575,-27.9120799,0.00020821,2]
[321972674,1712663446584,-1160.69,0.00020821,2]
[321972675,1712663446594,-1072.71,0.00020821,2]
[321972676,1712663446604,-2232.8,0.00020821,2]
[321972677,1712663446614,-551.2,0.00020821,2]
[321972678,1712663446625,-422.13015303,0.00020821,2]
[321972679,1712663446634,-1079.64,0.00020821,2]
[321972680,1712663446643,-500.0,0.00020821,2]
[321972681,1712663446653,-614.06,0.00020821,2]
[321972682,1712663446663,-500.0,0.00020821,2]
[321972683,1712663446672,-500.0,0.00020821,2]
[321972684,1712663446681,-1444.19,0.00020821,2]
[321972685,1712663446691,-670.45,0.00020821,2]
[321972686,1712663446700,-1206.76,0.00020821,2]
[321972687,1712663446710,-500.0,0.00020821,2]
[321972688,1712663446719,-500.0,0.00020821,2]
[321972689,1712663446729,-500.0,0.00020821,2]
[321972690,1712663447011,-507.49090117,0.00020821,2]
[321972691,1712663447020,-179.96425058,0.00020821,2]
[321972692,1712663447030,-500.0,0.00020821,2]
[321972693,1712663447041,-976.69,0.00020821,2]
[321972694,1712663447050,-500.0,0.00020821,2]
[321972695,1712663447060,-2023.88,0.00020821,2]
[321972696,1712663447069,-500.0,0.00020821,2]
[321972697,1712663447080,-500.0,0.00020821,2]
[321972698,1712663447089,-500.0,0.00020821,2]
[321972699,1712663447097,-500.0,0.00020821,2]
[321972700,1712663447107,-1340.31,0.00020821,2]
[321972701,1712663447116,-500.0,0.00020821,2]
[321972702,1712663447126,-500.0,0.00020821,2]
[321972703,1712663447135,-532.75,0.00020821,2]
[321972704,1712663447144,-500.0,0.00020821,2]
[321972705,1712663447153,-708.76,0.00020821,2]
[321972706,1712663447162,-615.2,0.00020821,2]
[321972707,1712663447171,-1606.71,0.00020821,2]
[321972708,1712663447181,-500.0,0.00020821,2]
[321972709,1712663447190,-572.15,0.00020821,2]
[321972710,1712663447200,-977.08,0.00020821,2]
[321972711,1712663447208,-1384.3,0.00020821,2]
[321972712,1712663447217,-500.0,0.00020821,2]
[321972713,1712663447227,-1229.66,0.00020821,2]
[321972714,1712663447236,-969.62,0.00020821,2]
[321972715,1712663447246,-1059.94,0.00020821,2]
[321972716,1712663447255,-1711.94,0.00020821,2]
[321972717,1712663447264,-500.0,0.00020821,2]
[321972718,1712663447274,-1043.91,0.00020821,2]
[321972719,1712663447283,-500.0,0.00020821,2]
[321972720,1712663447293,-500.0,0.00020821,2]
[321972721,1712663447302,-535.11,0.00020821,2]
[321972722,1712663447312,-500.0,0.00020821,2]
[321972723,1712663447322,-500.0,0.00020821,2]
[321972724,1712663447331,-500.0,0.00020821,2]
[321972725,1712663447341,-798.25,0.00020821,2]
[321972726,1712663447350,-1137.35,0.00020821,2]
[321972727,1712663447359,-500.0,0.00020821,2]
[321972728,1712663447368,-500.0,0.00020821,2]
[321972729,1712663447378,-765.91,0.00020821,2]
[321972730,1712663447387,-500.0,0.00020821,2]
[321972731,1712663447397,-556.74,0.00020821,2]
[321972732,1712663447406,-851.92,0.00020821,2]
[321972733,1712663447415,-644.46,0.00020821,2]
[321972734,1712663447424,-2100.59,0.00020821,2]
[321972735,1712663447434,-1212.05,0.00020821,2]
[321972736,1712663447443,-1139.71,0.00020821,2]
[321972737,1712663447452,-1564.48,0.00020821,2]
[321972738,1712663447461,-583.25,0.00020821,2]
[321972739,1712663447471,-695.83,0.00020821,2]
[321972740,1712663447480,-500.0,0.00020821,2]
[321972741,1712663447489,-1435.89,0.00020821,2]
[321972742,1712663447499,-1131.7,0.00020821,2]
[321972743,1712663447508,-500.0,0.00020821,2]
[321972744,1712663447517,-1106.35,0.00020821,2]
[321972745,1712663447525,-965.35,0.00020821,2]
[321972746,1712663447534,-1493.4,0.00020821,2]
[321972747,1712663447545,-500.0,0.00020821,2]
[321972748,1712663447554,-845.37,0.00020821,2]
[321972749,1712663447564,-3436.54,0.00020821,2]
[321972750,1712663447573,-733.36,0.00020821,2]
[321972751,1712663447583,-500.0,0.00020821,2]
[321972752,1712663447592,-1048.1,0.00020821,2]
[321972753,1712663447603,-500.0,0.00020821,2]
[321972754,1712663447613,-299.29844779,0.00020821,2]
[321972755,1712663447623,-863.13,0.00020821,2]
[321972756,1712663447633,-500.0,0.00020821,2]
[321972757,1712663447642,-530.86,0.00020821,2]
[321972758,1712663447652,-500.0,0.00020821,2]
[321972759,1712663447661,-500.0,0.00020821,2]
[321972760,1712663447670,-1254.29,0.00020821,2]
[321972761,1712663447679,-500.0,0.00020821,2]
[321972762,1712663447689,-500.0,0.00020821,2]
[321972763,1712663447698,-837.87,0.00020821,2]
[321972764,1712663447707,-500.0,0.00020821,2]
[321972765,1712663447717,-500.0,0.00020821,2]
[321972766,1712663447726,-500.0,0.00020821,2]
[321972767,1712663447736,-1387.54,0.00020821,2]
[321972768,1712663447745,-500.0,0.00020821,2]
[321972769,1712663447754,-1072.88,0.00020821,2]
[321972770,1712663447763,-500.0,0.00020821,2]
[321972771,1712663447772,-1940.68,0.00020821,2]
[321972772,1712663447782,-500.0,0.00020821,2]
[321972773,1712663447791,-574.30942699,0.00020821,2]
[321972774,1712663447800,-500.0,0.00020821,2]
[321972775,1712663447809,-677.49,0.00020821,2]
[321972776,1712663447819,-812.91,0.00020821,2]
[321972777,1712663447828,-2379.49,0.00020821,2]
[321972778,1712663447837,-546.84572743,0.00020821,2]
[321972779,1712663447847,-573.47,0.00020821,2]
[321972780,1712663447856,-533.38,0.00020821,2]
[321972781,1712663447865,-1091.48,0.00020821,2]
[321972782,1712663447874,-500.0,0.00020821,2]
[321972783,1712663447883,-500.0,0.00020821,2]
[321972784,1712663447893,-500.0,0.00020821,2]
[321972785,1712663447902,-500.0,0.00020821,2]
[321972786,1712663447912,-1793.86,0.00020821,2]
[321972787,1712663447921,-500.0,0.00020821,2]
[321972788,1712663447930,-500.0,0.00020821,2]
[321972789,1712663447940,-1171.31,0.00020821,2]
[321972790,1712663447950,-607.75,0.00020821,2]
[321972791,1712663447959,-500.0,0.00020821,2]
[321972792,1712663447969,-500.0,0.00020821,2]
[321972793,1712663447978,-500.0,0.00020821,2]
[321972794,1712663447987,-500.0,0.00020821,2]
[321972795,1712663447996,-500.0,0.00020821,2]
[321972796,1712663448007,-1138.21,0.00020821,2]
[321972797,1712663448017,-500.0,0.00020821,2]
[321972798,1712663448028,-500.0,0.00020821,2]
[321972799,1712663448038,-500.0,0.00020821,2]
[321972800,1712663448047,-1177.5,0.00020821,2]
[321972801,1712663448056,-933.43,0.00020821,2]
[321972802,1712663448065,-500.0,0.00020821,2]
[321972803,1712663448075,-500.0,0.00020821,2]
[321972804,1712663448085,-500.0,0.00020821,2]
[321972805,1712663448093,-517.49,0.00020821,2]
[321972806,1712663448103,-500.0,0.00020821,2]
[321972807,1712663448112,-1612.71356094,0.00020821,2]
[321972808,1712663448217,-11.58643906,0.00020821,2]
[321972809,1712663448226,-906.51,0.00020821,2]
[321972810,1712663448235,-500.0,0.00020821,2]
[321972811,1712663448244,-500.0,0.00020821,2]
[321972812,1712663448253,-500.0,0.00020821,2]
[321972813,1712663448263,-500.0,0.00020821,2]
[321972814,1712663448271,-500.0,0.00020821,2]
[321972815,1712663448279,-574.59868777,0.00020821,2]
[321972816,1712663448289,-500.0,0.00020821,2]